[Event "GrandPrix_30.05"]
[Site "Chess.com"]
[Date "2020.05.30"]
[Round "8"]
[White "Petriashvili02"]
[Black "BogdanDeac"]
[Result "0-1"]
[WhiteElo "2332"]
[BlackElo "2551"]
[TimeControl "600+2"]
[EndTime "11:47:43 PDT"]
[Termination "BogdanDeac won by resignation"]

1. c4 {[%clk 0:10:01]} 1... e6 {[%clk 0:10:00.7]} 2. Nf3 {[%clk 0:10:01.8]} 2...
d5 {[%clk 0:10:01.2]} 3. e3 {[%clk 0:10:02.4]} 3... g6 {[%clk 0:10:01.9]} 4. d4
{[%clk 0:10:02.9]} 4... Bg7 {[%clk 0:10:02.4]} 5. Nc3 {[%clk 0:10:01.8]} 5...
Ne7 {[%clk 0:10:03.4]} 6. b3 {[%clk 0:09:56.2]} 6... dxc4 {[%clk 0:09:50.9]} 7.
Bxc4 {[%clk 0:09:56.1]} 7... c5 {[%clk 0:09:52]} 8. Bb2 {[%clk 0:09:57.1]} 8...
cxd4 {[%clk 0:09:49.6]} 9. Nxd4 {[%clk 0:09:52]} 9... O-O {[%clk 0:09:50.1]} 10.
O-O {[%clk 0:09:52.5]} 10... a6 {[%clk 0:09:32.1]} 11. a4 {[%clk 0:09:52.2]}
11... Nbc6 {[%clk 0:09:29.8]} 12. Ne4 {[%clk 0:09:22.2]} 12... Nxd4 {[%clk
0:09:12.2]} 13. Bxd4 {[%clk 0:09:24.1]} 13... Bxd4 {[%clk 0:09:12.3]} 14. Qxd4
{[%clk 0:09:17.2]} 14... Qxd4 {[%clk 0:09:10.8]} 15. exd4 {[%clk 0:09:19.1]}
15... Rd8 {[%clk 0:08:52.6]} 16. Rfd1 {[%clk 0:09:19.8]} 16... Kg7 {[%clk
0:08:53.2]} 17. Nc3 {[%clk 0:09:17.3]} 17... Nf5 {[%clk 0:08:54.1]} 18. d5
{[%clk 0:08:47.3]} 18... e5 {[%clk 0:08:53.8]} 19. Ne4 {[%clk 0:08:46.5]} 19...
b6 {[%clk 0:06:59]} 20. Rac1 {[%clk 0:08:40.8]} 20... Bb7 {[%clk 0:06:52.6]} 21.
g4 {[%clk 0:08:22.8]} 21... Nd4 {[%clk 0:06:33.1]} 22. f4 {[%clk 0:08:02.6]}
22... Bxd5 {[%clk 0:06:24.1]} 23. Bxd5 {[%clk 0:07:38.6]} 23... Ne2+ {[%clk
0:05:34.5]} 24. Kf2 {[%clk 0:07:38.1]} 24... Nxc1 {[%clk 0:05:35.5]} 25. fxe5
{[%clk 0:07:39.5]} 25... Na2 {[%clk 0:05:28]} 26. Rd2 {[%clk 0:07:31.5]} 26...
Ra7 {[%clk 0:05:25.9]} 27. Nd6 {[%clk 0:07:26.1]} 27... Nb4 {[%clk 0:05:25.8]}
28. Bc4 {[%clk 0:07:22.2]} 28... Nc6 {[%clk 0:05:07.3]} 29. g5 {[%clk
0:07:16.8]} 29... Kf8 {[%clk 0:04:51.7]} 30. Ke3 {[%clk 0:06:46.7]} 30... Nxe5
{[%clk 0:04:50]} 31. Rd5 {[%clk 0:06:43.7]} 31... Nxc4+ {[%clk 0:04:43.9]} 32.
bxc4 {[%clk 0:06:45.6]} 32... Rad7 {[%clk 0:04:44.4]} 0-1

[Event "GrandPrix_30.05"]
[Site "Chess.com"]
[Date "2020.05.30"]
[Round "8"]
[White "Grebnev_A"]
[Black "Shahinyan_ChessMood"]
[Result "0-1"]
[WhiteElo "2211"]
[BlackElo "2394"]
[TimeControl "600+2"]
[EndTime "11:47:43 PDT"]
[Termination "Shahinyan_ChessMood won by resignation"]

1. c4 {[%clk 0:10:01.9]} 1... e5 {[%clk 0:09:56.7]} 2. Nc3 {[%clk 0:10:03.1]}
2... Nc6 {[%clk 0:09:57]} 3. g3 {[%clk 0:10:04.3]} 3... g6 {[%clk 0:09:58.2]} 4.
Bg2 {[%clk 0:10:05.6]} 4... Bg7 {[%clk 0:10:00.1]} 5. e3 {[%clk 0:10:07]} 5...
d6 {[%clk 0:10:01.8]} 6. Nge2 {[%clk 0:10:08.5]} 6... Be6 {[%clk 0:10:02.4]} 7.
d3 {[%clk 0:10:09.2]} 7... Qd7 {[%clk 0:10:03.2]} 8. O-O {[%clk 0:10:09.8]} 8...
Bh3 {[%clk 0:10:04.2]} 9. Rb1 {[%clk 0:10:11.1]} 9... h5 {[%clk 0:10:04.7]} 10.
f3 {[%clk 0:09:51.4]} 10... Bxg2 {[%clk 0:09:58.2]} 11. Kxg2 {[%clk 0:09:53.3]}
11... Nge7 {[%clk 0:09:59.1]} 12. h3 {[%clk 0:09:53]} 12... Nd8 {[%clk
0:09:55.6]} 13. b4 {[%clk 0:09:53.2]} 13... Ne6 {[%clk 0:09:54.8]} 14. f4 {[%clk
0:09:53.6]} 14... exf4 {[%clk 0:09:46.6]} 15. gxf4 {[%clk 0:09:49.1]} 15... d5
{[%clk 0:09:41.3]} 16. cxd5 {[%clk 0:09:46.3]} 16... Nxd5 {[%clk 0:09:42.2]} 17.
Nxd5 {[%clk 0:09:47.6]} 17... Qxd5+ {[%clk 0:09:44.1]} 18. e4 {[%clk 0:09:49]}
18... Qxa2 {[%clk 0:09:36.8]} 19. Be3 {[%clk 0:09:50.1]} 19... f5 {[%clk
0:08:59.4]} 20. Kh1 {[%clk 0:08:57.8]} 20... Rd8 {[%clk 0:08:51.6]} 21. exf5
{[%clk 0:08:45.9]} 21... gxf5 {[%clk 0:08:47.9]} 22. Ng3 {[%clk 0:08:46.8]}
22... h4 {[%clk 0:08:41.8]} 23. Nh5 {[%clk 0:08:39.1]} 23... Qd5+ {[%clk
0:07:56.5]} 24. Kh2 {[%clk 0:08:38.4]} 24... Qxd3 {[%clk 0:07:52.4]} 25. Qxd3
{[%clk 0:08:31.1]} 25... Rxd3 {[%clk 0:07:54.3]} 26. Nxg7+ {[%clk 0:08:32.7]}
26... Nxg7 {[%clk 0:07:53]} 27. Bc5 {[%clk 0:08:34.6]} 27... Kf7 {[%clk
0:07:44]} 28. Rfe1 {[%clk 0:08:18.3]} 28... b6 {[%clk 0:07:12.6]} 29. Bg1 {[%clk
0:08:05.9]} 29... Nh5 {[%clk 0:06:54.1]} 30. Rb2 {[%clk 0:07:53.8]} 30... Rg8
{[%clk 0:06:44.4]} 31. Rc2 {[%clk 0:07:48.4]} 31... c5 {[%clk 0:05:36.8]} 32.
Re5 {[%clk 0:07:28.2]} 32... Rgg3 {[%clk 0:05:31]} 33. Rxf5+ {[%clk 0:07:25.1]}
33... Kg6 {[%clk 0:05:31.6]} 34. Rg5+ {[%clk 0:07:26.1]} 34... Rxg5 {[%clk
0:05:32.2]} 35. fxg5 {[%clk 0:07:28]} 35... Nf4 {[%clk 0:05:20.2]} 36. Bf2
{[%clk 0:07:22.9]} 36... cxb4 {[%clk 0:05:20.8]} 37. Rc4 {[%clk 0:07:19.2]}
37... Rxh3+ {[%clk 0:05:03.2]} 38. Kg1 {[%clk 0:07:20]} 38... Nd3 {[%clk
0:05:04.4]} 0-1

[Event "GrandPrix_30.05"]
[Site "Chess.com"]
[Date "2020.05.30"]
[Round "8"]
[White "Yurovskykh_Alexander"]
[Black "Borisss85"]
[Result "0-1"]
[WhiteElo "2175"]
[BlackElo "2152"]
[TimeControl "600+2"]
[EndTime "11:47:49 PDT"]
[Termination "Borisss85 won by resignation"]

1. d4 {[%clk 0:09:53]} 1... Nf6 {[%clk 0:09:58.4]} 2. Nf3 {[%clk 0:09:32.2]}
2... g6 {[%clk 0:09:58.1]} 3. Bg5 {[%clk 0:09:33.5]} 3... Bg7 {[%clk 0:09:58.6]}
4. Nbd2 {[%clk 0:09:34.6]} 4... d5 {[%clk 0:09:59.2]} 5. e3 {[%clk 0:09:35.2]}
5... O-O {[%clk 0:09:59.6]} 6. Be2 {[%clk 0:09:36.1]} 6... Nbd7 {[%clk
0:09:59.6]} 7. O-O {[%clk 0:09:37.3]} 7... Re8 {[%clk 0:10:00.5]} 8. h3 {[%clk
0:09:34.7]} 8... e5 {[%clk 0:10:00.3]} 9. c3 {[%clk 0:09:36.1]} 9... c6 {[%clk
0:09:57.8]} 10. Bh4 {[%clk 0:09:36.2]} 10... Qb6 {[%clk 0:09:32.5]} 11. Qb3
{[%clk 0:09:31.5]} 11... exd4 {[%clk 0:09:30.8]} 12. cxd4 {[%clk 0:09:29.4]}
12... c5 {[%clk 0:08:29.7]} 13. dxc5 {[%clk 0:09:25.3]} 13... Nxc5 {[%clk
0:08:27.9]} 14. Qxb6 {[%clk 0:09:25]} 14... axb6 {[%clk 0:08:27.3]} 15. Bb5
{[%clk 0:09:12.4]} 15... Bd7 {[%clk 0:07:55.4]} 16. Bxd7 {[%clk 0:09:05.7]}
16... Nfxd7 {[%clk 0:07:54.8]} 17. Nd4 {[%clk 0:09:04]} 17... Bxd4 {[%clk
0:07:28.3]} 18. exd4 {[%clk 0:09:05.9]} 18... Nd3 {[%clk 0:07:28.3]} 19. Nf3
{[%clk 0:08:53.1]} 19... Nxb2 {[%clk 0:07:24]} 20. Rfb1 {[%clk 0:08:50.8]} 20...
Nc4 {[%clk 0:07:20.4]} 21. a4 {[%clk 0:08:34.1]} 21... f6 {[%clk 0:07:10.5]} 22.
Rb4 {[%clk 0:08:30.7]} 22... Ra5 {[%clk 0:07:01.1]} 23. Bg3 {[%clk 0:08:24.5]}
23... Rea8 {[%clk 0:06:54.1]} 24. Re1 {[%clk 0:08:19]} 24... Kf7 {[%clk
0:06:49.1]} 25. Rb5 {[%clk 0:08:13.8]} 25... Rxb5 {[%clk 0:06:42.4]} 26. axb5
{[%clk 0:08:15.7]} 26... Ra5 {[%clk 0:06:40.3]} 27. Rb1 {[%clk 0:08:16.6]} 27...
Na3 {[%clk 0:06:32.3]} 28. Rc1 {[%clk 0:08:17.3]} 28... Nxb5 {[%clk 0:06:12.4]}
29. Rc8 {[%clk 0:08:16.7]} 29... Ra4 {[%clk 0:06:06.5]} 30. Rd8 {[%clk
0:08:15.9]} 30... Ke7 {[%clk 0:06:01.1]} 31. Rh8 {[%clk 0:08:16.3]} 31... Nxd4
{[%clk 0:06:00]} 32. Rxh7+ {[%clk 0:08:15.1]} 32... Ke6 {[%clk 0:06:00.7]} 33.
Nh4 {[%clk 0:07:50]} 33... g5 {[%clk 0:05:45.4]} 34. Ng6 {[%clk 0:07:45.4]}
34... Ne2+ {[%clk 0:05:39.1]} 35. Kh2 {[%clk 0:07:46]} 35... Nxg3 {[%clk
0:05:39.8]} 36. Kxg3 {[%clk 0:07:47.2]} 36... b5 {[%clk 0:05:35.4]} 37. Re7+
{[%clk 0:07:41.2]} 37... Kd6 {[%clk 0:05:34]} 38. Re8 {[%clk 0:07:42.6]} 38...
b4 {[%clk 0:05:30.4]} 39. Ne7 {[%clk 0:07:43.8]} 39... b3 {[%clk 0:05:18.6]} 40.
Nf5+ {[%clk 0:07:45]} 40... Kc7 {[%clk 0:05:16.2]} 41. Re1 {[%clk 0:07:35.5]}
41... Nc5 {[%clk 0:05:04.3]} 42. Ne3 {[%clk 0:07:33.7]} 42... Kd6 {[%clk
0:04:57.8]} 43. Rd1 {[%clk 0:07:34.3]} 43... d4 {[%clk 0:04:56.5]} 44. Nf5+
{[%clk 0:07:27.6]} 44... Ke5 {[%clk 0:04:54.4]} 45. Ne7 {[%clk 0:07:25.9]} 0-1

[Event "GrandPrix_30.05"]
[Site "Chess.com"]
[Date "2020.05.30"]
[Round "8"]
[White "chansen64"]
[Black "Bosiocic"]
[Result "0-1"]
[WhiteElo "2129"]
[BlackElo "2596"]
[TimeControl "600+2"]
[EndTime "11:48:03 PDT"]
[Termination "Bosiocic won by resignation"]

1. d4 {[%clk 0:10:01.9]} 1... d6 {[%clk 0:09:57.9]} 2. Nf3 {[%clk 0:09:54]} 2...
Nf6 {[%clk 0:09:58.4]} 3. c4 {[%clk 0:09:54]} 3... g6 {[%clk 0:09:59.5]} 4. Nc3
{[%clk 0:09:54.8]} 4... Bf5 {[%clk 0:10:01.1]} 5. g3 {[%clk 0:09:49.3]} 5... Bg7
{[%clk 0:10:01.7]} 6. Bg2 {[%clk 0:09:49.6]} 6... c6 {[%clk 0:10:03.2]} 7. O-O
{[%clk 0:09:49.5]} 7... O-O {[%clk 0:10:04.7]} 8. Nh4 {[%clk 0:09:45.6]} 8...
Be6 {[%clk 0:10:05.8]} 9. b3 {[%clk 0:09:45.2]} 9... d5 {[%clk 0:10:06.1]} 10.
cxd5 {[%clk 0:09:39.4]} 10... cxd5 {[%clk 0:10:06.9]} 11. Bb2 {[%clk 0:09:27.4]}
11... Nc6 {[%clk 0:10:07.6]} 12. Rc1 {[%clk 0:09:19.7]} 12... Qd7 {[%clk
0:10:08.5]} 13. Na4 {[%clk 0:09:11.6]} 13... b6 {[%clk 0:10:04.3]} 14. Nf3
{[%clk 0:09:00.3]} 14... Rac8 {[%clk 0:10:04.6]} 15. a3 {[%clk 0:07:42.6]} 15...
Ne4 {[%clk 0:09:59.8]} 16. Ne5 {[%clk 0:07:31.2]} 16... Nxe5 {[%clk 0:09:54.6]}
17. dxe5 {[%clk 0:07:31.5]} 17... Bh3 {[%clk 0:09:55.4]} 18. Qd3 {[%clk
0:06:25.7]} 18... Bxg2 {[%clk 0:09:50.7]} 19. Kxg2 {[%clk 0:06:25.8]} 19... Nc5
{[%clk 0:09:47.3]} 20. Nxc5 {[%clk 0:06:22.6]} 20... bxc5 {[%clk 0:09:48.5]} 21.
Rfd1 {[%clk 0:06:15.3]} 21... d4 {[%clk 0:09:42.3]} 22. b4 {[%clk 0:05:17.9]}
22... Bxe5 {[%clk 0:09:32.4]} 23. bxc5 {[%clk 0:05:17]} 23... Qb7+ {[%clk
0:09:21.9]} 24. c6 {[%clk 0:04:19.8]} 24... Qxb2 {[%clk 0:09:19.7]} 25. Rc5
{[%clk 0:04:17.9]} 25... Qb8 {[%clk 0:08:15.9]} 26. Rb1 {[%clk 0:04:03]} 26...
Qd6 {[%clk 0:08:15.8]} 27. Qc4 {[%clk 0:03:57.4]} 27... Qf6 {[%clk 0:08:10.2]}
28. Rb7 {[%clk 0:03:39]} 28... Bd6 {[%clk 0:08:01.1]} 29. Ra5 {[%clk 0:03:35.2]}
29... Qe6 {[%clk 0:07:53.8]} 30. Qxe6 {[%clk 0:03:21.7]} 30... fxe6 {[%clk
0:07:53.1]} 31. Ra6 {[%clk 0:03:22]} 31... Rf5 {[%clk 0:07:52.8]} 32. f4 {[%clk
0:03:17.9]} 32... Rc5 {[%clk 0:07:52.5]} 0-1

[Event "GrandPrix_30.05"]
[Site "Chess.com"]
[Date "2020.05.30"]
[Round "8"]
[White "nikosgal"]
[Black "rusuvlad95"]
[Result "0-1"]
[WhiteElo "2260"]
[BlackElo "2147"]
[TimeControl "600+2"]
[EndTime "11:48:07 PDT"]
[Termination "rusuvlad95 won by resignation"]

1. d4 {[%clk 0:10:01.9]} 1... Nf6 {[%clk 0:10:00.9]} 2. c4 {[%clk 0:10:02.8]}
2... e5 {[%clk 0:10:02]} 3. dxe5 {[%clk 0:10:01.8]} 3... Ng4 {[%clk 0:10:03.2]}
4. Bf4 {[%clk 0:10:02.6]} 4... Nc6 {[%clk 0:10:03.7]} 5. Nf3 {[%clk 0:10:03.5]}
5... Bc5 {[%clk 0:10:04.4]} 6. e3 {[%clk 0:10:03.9]} 6... d6 {[%clk 0:10:05.5]}
7. exd6 {[%clk 0:10:02.5]} 7... Qf6 {[%clk 0:10:06.9]} 8. Qd2 {[%clk 0:09:44]}
8... Bb4 {[%clk 0:09:47.1]} 9. Nc3 {[%clk 0:09:44.5]} 9... cxd6 {[%clk
0:09:44.4]} 10. Rc1 {[%clk 0:09:44.5]} 10... Nge5 {[%clk 0:08:56]} 11. Be2
{[%clk 0:09:39.3]} 11... O-O {[%clk 0:08:06.9]} 12. a3 {[%clk 0:09:38.4]} 12...
Bxc3 {[%clk 0:07:44.5]} 13. Rxc3 {[%clk 0:09:38.4]} 13... Bg4 {[%clk 0:07:24.6]}
14. Nd4 {[%clk 0:08:08.1]} 14... Bxe2 {[%clk 0:07:15.2]} 15. Nxe2 {[%clk
0:08:05.2]} 15... h5 {[%clk 0:07:15.1]} 16. Ng3 {[%clk 0:07:58.6]} 16... h4
{[%clk 0:07:09.5]} 17. Ne4 {[%clk 0:07:53.7]} 17... Qg6 {[%clk 0:07:10.4]} 18.
f3 {[%clk 0:07:33.4]} 18... h3 {[%clk 0:07:06.5]} 19. O-O {[%clk 0:07:30.8]}
19... hxg2 {[%clk 0:06:42.9]} 20. Qxg2 {[%clk 0:07:12.9]} 20... Nxf3+ {[%clk
0:06:43.7]} 21. Rxf3 {[%clk 0:07:11]} 21... Qxe4 {[%clk 0:06:44.3]} 22. Bxd6
{[%clk 0:07:07]} 22... Rfe8 {[%clk 0:06:28.6]} 23. c5 {[%clk 0:06:51.3]} 23...
Re6 {[%clk 0:06:26.4]} 24. Rc1 {[%clk 0:06:43.2]} 24... Rg6 {[%clk 0:06:24.3]}
25. Rg3 {[%clk 0:06:44.1]} 25... Rxg3 {[%clk 0:06:23]} 26. Qxg3 {[%clk
0:06:40.7]} 26... Re8 {[%clk 0:06:19.6]} 27. Qf4 {[%clk 0:06:24]} 27... Qxe3+
{[%clk 0:06:06.1]} 28. Qxe3 {[%clk 0:06:25.1]} 28... Rxe3 {[%clk 0:06:08]} 29.
b4 {[%clk 0:06:26.3]} 29... a6 {[%clk 0:05:59.9]} 30. Ra1 {[%clk 0:06:18]} 30...
Rd3 {[%clk 0:05:55.4]} 31. Kf2 {[%clk 0:06:16.1]} 31... f6 {[%clk 0:05:54.1]}
32. Ke2 {[%clk 0:06:16.6]} 32... Rb3 {[%clk 0:05:52.6]} 33. Kd2 {[%clk
0:06:16.9]} 33... Kf7 {[%clk 0:05:51.3]} 34. Kc2 {[%clk 0:06:17.6]} 34... Nd4+
{[%clk 0:05:50]} 35. Kd2 {[%clk 0:06:15]} 35... Rh3 {[%clk 0:05:47.8]} 36. Bg3
{[%clk 0:06:01.1]} 36... Nb3+ {[%clk 0:05:43.4]} 37. Kc3 {[%clk 0:05:59.4]}
37... Nxa1 {[%clk 0:05:44.3]} 38. Kb2 {[%clk 0:06:00.8]} 38... g5 {[%clk
0:05:30.5]} 0-1

[Event "GrandPrix_30.05"]
[Site "Chess.com"]
[Date "2020.05.30"]
[Round "8"]
[White "gygygygygyggygygygy"]
[Black "arminmusovic"]
[Result "1-0"]
[WhiteElo "2105"]
[BlackElo "2274"]
[TimeControl "600+2"]
[EndTime "11:49:30 PDT"]
[Termination "gygygygygyggygygygy won by resignation"]

1. e4 {[%clk 0:09:38]} 1... c6 {[%clk 0:09:59.4]} 2. d3 {[%clk 0:09:38.4]} 2...
d5 {[%clk 0:09:58.7]} 3. Nd2 {[%clk 0:09:39.6]} 3... g6 {[%clk 0:10:00.3]} 4.
Ngf3 {[%clk 0:09:39.1]} 4... Bg7 {[%clk 0:10:01.2]} 5. g3 {[%clk 0:09:40.6]}
5... e6 {[%clk 0:10:02.3]} 6. Bg2 {[%clk 0:09:42.2]} 6... Ne7 {[%clk 0:10:03.9]}
7. O-O {[%clk 0:09:43.7]} 7... O-O {[%clk 0:10:05.6]} 8. Re1 {[%clk 0:09:44.9]}
8... Re8 {[%clk 0:10:07.1]} 9. e5 {[%clk 0:09:45.1]} 9... c5 {[%clk 0:10:07.8]}
10. Nf1 {[%clk 0:09:46.1]} 10... Nbc6 {[%clk 0:10:08.9]} 11. h4 {[%clk
0:09:44.3]} 11... Qc7 {[%clk 0:10:02.8]} 12. Bf4 {[%clk 0:09:44.3]} 12... b6
{[%clk 0:09:54.4]} 13. h5 {[%clk 0:09:44.6]} 13... Ba6 {[%clk 0:09:22.6]} 14.
N1h2 {[%clk 0:09:44.8]} 14... gxh5 {[%clk 0:09:21.2]} 15. Ng5 {[%clk 0:09:32.4]}
15... Ng6 {[%clk 0:09:12.8]} 16. Qxh5 {[%clk 0:09:30.8]} 16... h6 {[%clk
0:09:12.8]} 17. Ngf3 {[%clk 0:09:26.1]} 17... Nxf4 {[%clk 0:09:05.2]} 18. gxf4
{[%clk 0:09:26.6]} 18... f5 {[%clk 0:09:06.4]} 19. exf6 {[%clk 0:09:22.8]} 19...
Bxf6 {[%clk 0:09:06.9]} 20. Qxh6 {[%clk 0:08:47.1]} 20... Qg7 {[%clk 0:08:52.3]}
21. Qh5 {[%clk 0:08:40.2]} 21... Bxb2 {[%clk 0:08:33.9]} 22. Ng5 {[%clk
0:08:22.1]} 22... Nd4 {[%clk 0:05:46.9]} 23. Rab1 {[%clk 0:07:39]} 23... Bc3
{[%clk 0:05:40.4]} 24. Re3 {[%clk 0:07:33]} 24... Bb7 {[%clk 0:04:20.2]} 25. Rg3
{[%clk 0:07:09.7]} 25... Nf5 {[%clk 0:04:10.2]} 26. Rg4 {[%clk 0:07:03.6]} 26...
Nh6 {[%clk 0:03:30.9]} 27. Nxe6 {[%clk 0:06:38.9]} 27... Rxe6 {[%clk 0:03:27.3]}
28. Rxg7+ {[%clk 0:06:37.2]} 28... Bxg7 {[%clk 0:03:24.4]} 29. Bxd5 {[%clk
0:06:34.7]} 29... Bxd5 {[%clk 0:03:25.2]} 30. Qxd5 {[%clk 0:06:35.2]} 30... Re8
{[%clk 0:03:22.9]} 31. f5 {[%clk 0:06:35.9]} 31... Nxf5 {[%clk 0:03:23.2]} 32.
Qxf5 {[%clk 0:06:36.7]} 32... Rf6 {[%clk 0:03:21.7]} 33. Qd5+ {[%clk 0:06:37.4]}
33... Kh7 {[%clk 0:03:20.1]} 34. Qh5+ {[%clk 0:06:30.8]} 1-0

[Event "GrandPrix_30.05"]
[Site "Chess.com"]
[Date "2020.05.30"]
[Round "8"]
[White "TheNextLevelFan"]
[Black "PlayChessSimple"]
[Result "0-1"]
[WhiteElo "2204"]
[BlackElo "2213"]
[TimeControl "600+2"]
[EndTime "11:49:48 PDT"]
[Termination "PlayChessSimple won by resignation"]

1. d4 {[%clk 0:10:01.6]} 1... e6 {[%clk 0:09:59.9]} 2. c4 {[%clk 0:10:00]} 2...
f5 {[%clk 0:09:59.4]} 3. Nc3 {[%clk 0:09:52.8]} 3... Nf6 {[%clk 0:10:00.2]} 4.
Bg5 {[%clk 0:09:43.1]} 4... h6 {[%clk 0:10:00.2]} 5. Bxf6 {[%clk 0:09:37.2]}
5... Qxf6 {[%clk 0:10:02.1]} 6. Nf3 {[%clk 0:09:32.8]} 6... g6 {[%clk
0:09:42.9]} 7. Qd2 {[%clk 0:09:29.8]} 7... Bg7 {[%clk 0:09:41.4]} 8. e4 {[%clk
0:09:31.3]} 8... Nc6 {[%clk 0:09:06.4]} 9. e5 {[%clk 0:07:57.2]} 9... Qe7 {[%clk
0:09:02.4]} 10. c5 {[%clk 0:07:02.6]} 10... O-O {[%clk 0:08:55.1]} 11. Bc4
{[%clk 0:06:47.9]} 11... b6 {[%clk 0:08:44]} 12. cxb6 {[%clk 0:06:47.6]} 12...
axb6 {[%clk 0:08:40.2]} 13. O-O {[%clk 0:06:48.6]} 13... Bb7 {[%clk 0:08:02.9]}
14. Rfe1 {[%clk 0:06:40]} 14... Nb4 {[%clk 0:07:34]} 15. Be2 {[%clk 0:06:01.5]}
15... g5 {[%clk 0:07:13.4]} 16. Rec1 {[%clk 0:05:57]} 16... g4 {[%clk
0:06:56.1]} 17. Ne1 {[%clk 0:05:57.7]} 17... c5 {[%clk 0:06:48.9]} 18. Nb5
{[%clk 0:05:44.1]} 18... Nxa2 {[%clk 0:06:39.7]} 19. Rd1 {[%clk 0:05:38.1]}
19... Nb4 {[%clk 0:05:49.5]} 20. Nd6 {[%clk 0:05:07.3]} 20... Bd5 {[%clk
0:05:38.6]} 21. Nd3 {[%clk 0:04:51.2]} 21... Nxd3 {[%clk 0:05:23.3]} 22. Qxd3
{[%clk 0:04:51.1]} 22... cxd4 {[%clk 0:05:21.1]} 23. Rxa8 {[%clk 0:04:45.4]}
23... Rxa8 {[%clk 0:05:20.4]} 24. Qxd4 {[%clk 0:04:46.8]} 24... Qxd6 {[%clk
0:05:11.6]} 25. exd6 {[%clk 0:04:48.7]} 25... Bxd4 {[%clk 0:05:12.3]} 26. Rxd4
{[%clk 0:04:50.3]} 26... Ra1+ {[%clk 0:04:39.1]} 27. Bf1 {[%clk 0:04:50.9]}
27... b5 {[%clk 0:04:23.7]} 0-1

[Event "GrandPrix_30.05"]
[Site "Chess.com"]
[Date "2020.05.30"]
[Round "8"]
[White "AlexVanGog"]
[Black "MaxVavulin"]
[Result "1-0"]
[WhiteElo "2488"]
[BlackElo "2273"]
[TimeControl "600+2"]
[EndTime "11:49:52 PDT"]
[Termination "AlexVanGog won by resignation"]

1. d4 {[%clk 0:09:55.1]} 1... Nf6 {[%clk 0:10:00.4]} 2. c4 {[%clk 0:09:56.1]}
2... e6 {[%clk 0:10:01.3]} 3. Nf3 {[%clk 0:09:56.9]} 3... b6 {[%clk 0:10:02]} 4.
g3 {[%clk 0:09:57.8]} 4... Ba6 {[%clk 0:10:02.5]} 5. Qb3 {[%clk 0:09:58.9]} 5...
c5 {[%clk 0:10:01.2]} 6. d5 {[%clk 0:09:57.2]} 6... exd5 {[%clk 0:09:45.8]} 7.
cxd5 {[%clk 0:09:59.1]} 7... g6 {[%clk 0:09:41.2]} 8. Nc3 {[%clk 0:09:59]} 8...
Bg7 {[%clk 0:09:41.7]} 9. e4 {[%clk 0:10:00.6]} 9... Bxf1 {[%clk 0:09:41.3]} 10.
Kxf1 {[%clk 0:10:02.3]} 10... d6 {[%clk 0:09:40.3]} 11. Kg2 {[%clk 0:09:57.3]}
11... O-O {[%clk 0:09:40.9]} 12. a4 {[%clk 0:09:58.7]} 12... Na6 {[%clk
0:09:35.5]} 13. Bf4 {[%clk 0:09:50.4]} 13... Nh5 {[%clk 0:09:32.6]} 14. Bg5
{[%clk 0:09:50.4]} 14... Nf6 {[%clk 0:09:15.6]} 15. Rad1 {[%clk 0:09:45]} 15...
Nc7 {[%clk 0:09:14.4]} 16. Rhe1 {[%clk 0:09:45.5]} 16... h6 {[%clk 0:09:13.1]}
17. Bf4 {[%clk 0:09:45.2]} 17... g5 {[%clk 0:09:06.3]} 18. Bxd6 {[%clk
0:09:37.3]} 18... Qxd6 {[%clk 0:09:06.4]} 19. e5 {[%clk 0:09:38.5]} 19... Qd8
{[%clk 0:08:57.2]} 20. exf6 {[%clk 0:09:38.1]} 20... Qxf6 {[%clk 0:08:48.5]} 21.
d6 {[%clk 0:09:36.8]} 21... Ne6 {[%clk 0:08:48.3]} 22. d7 {[%clk 0:08:45.1]}
22... g4 {[%clk 0:08:23.1]} 23. Ne5 {[%clk 0:08:42.4]} 23... Nd4 {[%clk
0:08:04.4]} 24. Qd5 {[%clk 0:08:38.8]} 24... h5 {[%clk 0:07:52.5]} 25. Nb5
{[%clk 0:08:34.2]} 25... Nc2 {[%clk 0:05:54.8]} 26. Re2 {[%clk 0:08:21.4]} 26...
a6 {[%clk 0:05:36.6]} 27. Nc7 {[%clk 0:08:07.5]} 27... Rad8 {[%clk 0:05:21.3]}
28. Ne8 {[%clk 0:08:02.6]} 28... Rfxe8 {[%clk 0:03:04.9]} 29. dxe8=Q+ {[%clk
0:08:04.5]} 29... Rxe8 {[%clk 0:03:06.3]} 30. Nxg4 {[%clk 0:07:52.5]} 30... Rxe2
{[%clk 0:03:04.7]} 31. Nxf6+ {[%clk 0:07:51.7]} 31... Bxf6 {[%clk 0:03:06.3]}
32. Kf1 {[%clk 0:07:29.1]} 32... Re6 {[%clk 0:02:58.4]} 33. Qxh5 {[%clk
0:07:19.6]} 33... Kf8 {[%clk 0:02:34.6]} 34. Rd7 {[%clk 0:07:06]} 1-0

[Event "GrandPrix_30.05"]
[Site "Chess.com"]
[Date "2020.05.30"]
[Round "8"]
[White "ploky25"]
[Black "ValeriyGrinev"]
[Result "0-1"]
[WhiteElo "2188"]
[BlackElo "2159"]
[TimeControl "600+2"]
[EndTime "11:49:52 PDT"]
[Termination "ValeriyGrinev won by checkmate"]

1. d4 {[%clk 0:10:00.6]} 1... Nf6 {[%clk 0:10:00]} 2. c4 {[%clk 0:10:01]} 2...
g6 {[%clk 0:10:00.9]} 3. Nc3 {[%clk 0:10:01.7]} 3... d5 {[%clk 0:10:02.2]} 4.
cxd5 {[%clk 0:10:01.8]} 4... Nxd5 {[%clk 0:10:03.2]} 5. Bd2 {[%clk 0:10:02.4]}
5... Bg7 {[%clk 0:10:03.5]} 6. e4 {[%clk 0:10:02.8]} 6... Nxc3 {[%clk
0:10:04.5]} 7. Bxc3 {[%clk 0:10:03.2]} 7... O-O {[%clk 0:10:05.6]} 8. Qd2 {[%clk
0:09:53.7]} 8... Nc6 {[%clk 0:10:06.6]} 9. d5 {[%clk 0:09:45.1]} 9... Ne5 {[%clk
0:10:06.3]} 10. f4 {[%clk 0:09:43.7]} 10... Nd7 {[%clk 0:10:06.1]} 11. Bxg7
{[%clk 0:09:32.2]} 11... Kxg7 {[%clk 0:10:08]} 12. Qc3+ {[%clk 0:09:21.9]} 12...
Kg8 {[%clk 0:09:56.7]} 13. O-O-O {[%clk 0:08:53.5]} 13... Nf6 {[%clk 0:09:28.6]}
14. Bd3 {[%clk 0:08:53]} 14... c6 {[%clk 0:09:21.2]} 15. dxc6 {[%clk 0:08:52.2]}
15... bxc6 {[%clk 0:09:17.4]} 16. Nf3 {[%clk 0:08:43.8]} 16... Bg4 {[%clk
0:09:09]} 17. Bc2 {[%clk 0:07:50.7]} 17... Qb6 {[%clk 0:08:56.8]} 18. Rd2 {[%clk
0:07:50.4]} 18... Bxf3 {[%clk 0:08:43.4]} 19. Qxf3 {[%clk 0:07:50.1]} 19... Rfd8
{[%clk 0:08:41.2]} 20. Qf2 {[%clk 0:06:37.5]} 20... Rxd2 {[%clk 0:08:33.9]} 21.
Qxd2 {[%clk 0:06:38.2]} 21... Rd8 {[%clk 0:08:34.1]} 22. Qe2 {[%clk 0:06:36.6]}
22... Rd4 {[%clk 0:07:16.7]} 23. g4 {[%clk 0:06:13]} 23... Qc5 {[%clk
0:06:11.9]} 24. Kb1 {[%clk 0:05:42.5]} 24... e5 {[%clk 0:06:07]} 25. Rf1 {[%clk
0:05:17.1]} 25... exf4 {[%clk 0:05:49]} 26. Rxf4 {[%clk 0:05:16.4]} 26... Nd7
{[%clk 0:05:31.8]} 27. Bb3 {[%clk 0:04:59.9]} 27... Ne5 {[%clk 0:05:28.7]} 28.
Qf2 {[%clk 0:04:59.5]} 28... Nd3 {[%clk 0:04:47.1]} 29. Rxf7 {[%clk 0:04:18]}
29... Qc1# {[%clk 0:04:45.9]} 0-1